bitfinex/quotes_ETHUSD_20260207
["timestamp","ask_amount","ask_price","bid_price","bid_amount"]
[1770461163784,0.002,2008.0,2007.3,1.99000077]
[1770461164103,0.002,2008.0,2007.3,0.74455969]
[1770461164283,0.002,2008.0,2007.3,1.99000818]
[1770461164480,0.002,2008.0,2007.4,1.24539194]
[1770461164685,0.002,2008.0,2007.4,2.06324427]
[1770461165080,1.24701992,2008.0,2007.4,1.24538996]
[1770461165404,1.24701992,2008.0,2007.4,1.2453878]
[1770461165594,1.24701992,2008.0,2007.3,1.24640547]
[1770461165792,1.24701992,2008.0,2007.3,0.001]
[1770461166177,1.24701992,2008.0,2007.4,1.24539085]
[1770461166508,1.99506206,2008.0,2007.4,1.24539085]
[1770461166707,0.75004214,2008.0,2007.4,1.24539085]
[1770461166909,1.91221402,2008.0,2007.3,0.001]
[1770461167207,1.24508192,2007.9,2007.3,0.001]
[1770461168812,2.4072538,2007.9,2007.3,0.001]
[1770461168988,0.81376236,2007.8,2007.3,0.001]
[1770461169188,2.0589368,2007.8,2007.3,0.001]
[1770461170428,3.17648869,2007.8,2007.3,0.001]
[1770461170732,3.17648869,2007.8,2007.0,2.33555135]
[1770461171407,2.0589368,2007.8,2007.1,1.09522578]
[1770461171716,0.002,2008.0,2007.1,1.09522578]
[1770461171922,1.24702766,2008.0,2007.1,1.09522578]
[1770461172218,2.36457955,2008.0,2007.1,1.09522578]
[1770461173022,1.24703594,2008.0,2007.1,1.09522578]
[1770461173439,0.002,2008.0,2007.2,2.34074192]
[1770461173724,0.002,2008.0,2007.1,4.98213457]
[1770461173725,1.11955189,2008.0,2007.1,1.24553312]
[1770461173934,1.11955189,2008.0,2007.2,0.001]
[1770461174106,0.002,2007.7,2007.2,0.001]
[1770461174706,0.002,2007.7,2007.2,1.09622578]
[1770461175635,0.002,2007.7,2007.2,0.001]
[1770461176621,0.002,2007.7,2007.2,3.07426768]
[1770461177747,0.002,2007.7,2007.2,1.9790419]
[1770461178025,0.002,2007.7,2007.3,1.09522578]
[1770461179930,0.002,2007.7,2007.4,1.24539204]
[1770461180113,0.002,2007.7,2007.4,2.34061782]
[1770461180308,0.002,2007.7,2007.5,0.73224093]
[1770461182735,0.002,2007.7,2007.4,1.24539204]
[1770461184206,0.002,2007.7,2007.3,1.2454251]
[1770461184446,0.002,2007.7,2007.3,1.24544923]
[1770461187215,0.002,2007.7,2007.5,0.001]
[1770461187513,0.002,2007.5,2007.3,1.24544923]
[1770461187731,0.002,2007.5,2007.4,0.80562556]
[1770461188136,0.002,2007.7,2007.5,1.09522578]
[1770461188339,0.002,2008.4,2007.6,1.09522578]
[1770461188646,1.24679141,2008.4,2007.6,1.09522578]
[1770461188824,0.002,2008.4,2007.6,1.09522578]
[1770461189224,1.24680788,2008.4,2007.7,1.24520595]
[1770461189442,0.002,2008.4,2007.8,1.82735494]
[1770461191237,0.002,2008.4,2007.9,1.24508192]
[1770461191844,0.002,2008.4,2007.8,0.73212916]
[1770461192042,1.11955189,2008.2,2007.4,1.24533622]
[1770461192245,1.11955189,2008.2,2007.3,4.9827542]
[1770461192246,1.11955189,2008.2,2007.5,1.24532678]
[1770461192543,1.11955189,2008.2,2007.4,1.24534353]
[1770461192751,1.11955189,2008.2,2007.5,0.62280977]
[1770461193051,1.11955189,2008.2,2007.5,1.86813728]
[1770461193634,1.24495792,2008.1,2007.5,1.86813728]
[1770461193825,2.36448995,2008.2,2007.5,1.86813728]
[1770461195856,0.002,2008.2,2007.6,1.10732815]
[1770461196026,0.002,2008.2,2007.6,1.90302892]
[1770461197448,0.002,2008.2,2007.6,3.14827772]
[1770461197619,1.05807872,2008.2,2007.4,1.24535266]
[1770461197820,1.05807872,2008.2,2007.5,1.24532657]
[1770461198858,0.002,2008.2,2007.6,1.24521318]
[1770461199031,1.05807872,2008.2,2007.5,1.24528997]
[1770461199237,1.05807872,2008.2,2007.4,1.24536604]
[1770461199447,1.05807872,2008.2,2007.4,2.05225921]
[1770461199649,2.30103664,2008.1,2007.8,0.001]
[1770461199849,0.002,2008.0,2007.8,0.001]
[1770461200159,0.002,2008.0,2007.5,0.001]
[1770461205391,0.002,2008.0,2007.5,1.24633001]
[1770461205563,0.002,2008.0,2007.6,0.73350445]
[1770461205966,0.002,2008.0,2007.5,0.001]
[1770461206179,1.05807872,2008.0,2007.5,0.001]
[1770461207281,2.30313495,2008.0,2007.5,0.001]
[1770461207584,1.05607872,2007.9,2007.5,0.001]
[1770461208955,1.24702743,2008.0,2007.5,0.001]
[1770461209178,1.97550508,2008.0,2007.5,0.001]
[1770461209688,0.73047765,2008.0,2007.5,0.001]
[1770461210285,0.002,2008.0,2007.5,1.10832815]
[1770461211857,0.002,2008.0,2007.7,0.001]
[1770461212857,0.002,2008.0,2007.7,1.10832815]
[1770461213477,0.002,2008.0,2007.7,0.001]
[1770461216982,0.002,2008.0,2007.7,1.24620595]
[1770461217183,0.002,2008.0,2007.7,2.3535341]
[1770461217359,0.002,2008.0,2007.7,3.08709403]
[1770461221686,0.002,2008.6,2007.8,1.16444405]
[1770461221993,0.002,2008.6,2007.8,1.10732815]
[1770461223674,0.002,2008.6,2008.0,1.10732815]
[1770461225565,0.002,2008.6,2008.2,1.10732815]
[1770461226069,0.002,2008.6,2008.2,0.73321178]
[1770461226385,0.002,2008.6,2007.9,1.24504613]
[1770461226386,10.80155293,2008.6,2007.9,1.24504613]
[1770461226768,1.02371722,2008.5,2007.8,1.24509574]
[1770461227088,1.02371722,2008.5,2007.8,1.24510392]
[1770461227278,1.02371722,2008.5,2007.7,1.97970784]
[1770461227588,1.02371722,2008.5,2007.7,0.73455993]
[1770461227589,3.34867085,2008.4,2007.7,0.73455993]
[1770461227783,1.02371722,2008.3,2007.7,0.001]
[1770461231593,0.99982252,2008.1,2007.7,0.001]
[1770461233895,2.24465645,2008.3,2007.7,0.001]
[1770461234265,0.99982252,2008.2,2007.7,0.001]
[1770461235274,0.83039009,2008.2,2007.7,0.001]
[1770461235480,1.24483393,2008.3,2007.7,0.001]
[1770461236707,1.24667066,2008.6,2007.9,1.04834979]
[1770461236912,1.24667066,2008.6,2007.9,0.001]
[1770461236913,0.002,2008.2,2007.9,0.001]
[1770461238418,1.72462174,2008.2,2007.9,0.001]
[1770461239483,0.99982252,2008.1,2007.9,0.001]
[1770461240706,2.24483076,2008.1,2007.9,0.001]
[1770461241303,1.24500824,2008.1,2007.9,0.001]
[1770461242381,1.96973351,2008.2,2007.9,0.001]
[1770461243812,0.002,2008.2,2007.9,0.001]
[1770461244016,1.2469067,2008.2,2007.9,0.001]
[1770461244715,0.002,2008.2,2007.9,0.001]
[1770461249426,0.002,2008.2,2007.7,0.001]
[1770461249427,10.78534185,2008.2,2007.7,0.001]
[1770461249723,1.07853419,2008.1,2007.7,1.04834979]
[1770461249904,10.78534185,2008.2,2007.7,0.001]
[1770461250224,9.78551933,2008.2,2007.7,0.001]
[1770461250445,0.002,2008.2,2007.7,1.04834979]
[1770461250591,0.002,2008.6,2008.3,1.04734979]
[1770461251001,0.002,2008.6,2007.9,1.04734979]
[1770461251613,0.002,2008.5,2007.9,1.24507272]
[1770461252128,0.002,2008.6,2008.1,1.04734979]
[1770461253124,0.004,2008.6,2008.1,1.04734979]
[1770461253823,0.004,2008.6,2008.3,1.04734979]
[1770461256129,0.004,2008.6,2008.0,0.62256438]
[1770461256130,0.002,2008.5,2008.0,1.86755496]
[1770461256711,0.002,2008.5,2008.1,1.24495144]
[1770461257222,0.002,2008.5,2008.1,1.92970879]
[1770461257416,0.002,2008.5,2008.1,0.68475735]
[1770461257594,0.002,2008.5,2008.1,1.24494623]
[1770461257797,0.002,2008.5,2008.0,1.86753691]
[1770461258927,0.002,2008.4,2008.0,1.86753691]
[1770461259302,0.002,2008.3,2008.0,1.86753691]
[1770461259605,9.78551933,2008.5,2007.8,1.24511678]
[1770461260116,9.78551933,2008.5,2007.7,2.28367949]
[1770461260117,12.06419085,2008.5,2007.7,2.28367949]
[1770461260316,0.002,2008.4,2007.7,1.24620255]
[1770461260511,9.78351933,2008.3,2007.7,1.24620255]
[1770461260823,9.78551933,2008.3,2007.7,0.001]
[1770461261027,0.002,2008.2,2007.7,0.001]
[1770461261207,0.002,2008.2,2007.7,2.28367696]
[1770461261408,0.002,2008.1,2008.0,0.001]
[1770461262922,1.03592207,2008.3,2007.7,0.001]
[1770461263113,0.001,2008.2,2007.7,0.001]
[1770461263502,0.001,2008.1,2007.7,0.001]
[1770461263927,0.001,2008.0,2007.7,0.001]
[1770461264126,0.001,2008.2,2007.7,0.001]
[1770461264630,0.001,2008.1,2007.7,0.001]
[1770461265337,1.24489592,2008.2,2007.7,0.001]
[1770461265503,0.001,2008.0,2007.7,0.001]
[1770461267437,0.001,2008.0,2007.7,1.03847772]
[1770461267931,0.001,2008.0,2007.8,0.04978784]
[1770461268229,0.001,2008.0,2007.7,1.03847772]
[1770461268930,0.001,2008.0,2007.7,0.001]
[1770461269620,1.03392207,2008.0,2007.5,0.001]
[1770461270403,0.001,2007.9,2007.5,0.001]
[1770461270605,1.03492207,2008.2,2007.5,0.001]
[1770461271835,1.24595792,2008.1,2007.5,0.001]
[1770461272036,0.72696397,2008.0,2007.5,0.001]
[1770461272236,0.001,2008.0,2007.5,1.03847772]
[1770461272424,1.24686817,2008.3,2007.5,1.03847772]
[1770461272425,0.002,2008.3,2007.5,1.03847772]
[1770461272737,0.001,2008.2,2007.5,1.03847772]
[1770461273639,0.001,2008.1,2007.7,0.001]
[1770461274647,0.001,2008.1,2007.8,1.03747772]
[1770461274848,0.002,2008.3,2007.8,1.03747772]
[1770461275049,0.001,2008.2,2007.8,1.03747772]
[1770461277213,0.002,2008.3,2007.9,2.28255964]
[1770461277442,0.003,2008.3,2008.0,0.72629854]
[1770461279229,0.001,2008.2,2007.8,1.24511159]
[1770461279545,0.001,2008.2,2007.9,1.24507539]
[1770461279744,0.001,2008.1,2007.7,0.001]
[1770461280040,0.001,2008.1,2007.7,1.24616832]
[1770461280246,0.001,2008.1,2007.7,0.001]
[1770461281044,0.001,2008.0,2007.7,0.001]
[1770461281221,0.001,2008.2,2007.7,0.001]
[1770461281423,0.001,2008.2,2007.7,1.24619845]
[1770461281629,0.001,2008.1,2007.8,1.03747772]
[1770461281943,0.001,2008.2,2007.8,1.03747772]
[1770461283785,0.002,2008.3,2008.0,1.03747772]
[1770461283927,0.002,2008.3,2007.9,1.24508192]
[1770461283928,0.002,2008.5,2008.1,1.03747772]
[1770461284244,0.003,2008.5,2008.1,1.03747772]
[1770461284830,0.003,2008.5,2008.0,1.03747772]
[1770461285050,0.003,2008.5,2008.0,1.76376645]
[1770461285221,0.002,2008.3,2008.0,1.76376645]
[1770461285622,0.003,2008.3,2008.0,1.76376645]
[1770461285862,0.003,2008.3,2008.1,1.24495792]
[1770461286844,0.001,2008.2,2008.0,0.72628873]
[1770461287049,0.001,2008.2,2007.9,1.24504404]
[1770461287356,0.001,2008.1,2007.9,1.24507729]
[1770461287572,0.001,2008.1,2007.8,1.2451075]
[1770461287755,0.001,2008.0,2007.9,1.24507661]
[1770461288042,0.002,2008.3,2007.7,0.001]
[1770461288043,0.001,2008.2,2007.7,0.001]
[1770461288247,1.01358601,2008.1,2007.5,0.001]
[1770461288670,1.01558601,2008.3,2007.6,1.24526369]
[1770461288973,0.002,2008.3,2007.6,1.24526369]
[1770461289140,1.01558601,2008.3,2007.5,1.24628727]
[1770461289343,1.01558601,2008.3,2007.6,1.24522258]
[1770461289774,1.01558601,2008.3,2007.5,1.96939162]
[1770461289939,1.24489592,2008.2,2007.5,1.96939162]
[1770461290854,1.24683463,2008.3,2007.6,1.01347203]
[1770461291242,0.002,2008.3,2007.6,1.01347203]
[1770461291444,0.002,2008.3,2007.7,1.31175839]
[1770461292660,0.002,2008.3,2007.8,1.24514393]
[1770461293666,0.002,2008.3,2007.9,1.01347203]
[1770461294689,0.002,2008.3,2008.0,1.24501992]
[1770461296751,0.002,2008.3,2008.0,1.24601992]
[1770461296984,0.002,2008.3,2008.0,0.001]
[1770461297292,0.002,2008.1,2008.0,0.001]
[1770461299560,1.0493788,2008.1,2007.8,0.001]
[1770461300059,1.0493788,2008.1,2007.5,0.001]
[1770461300254,1.0493788,2008.1,2007.3,0.001]
[1770461300851,1.0473788,2007.9,2007.3,0.001]
[1770461301061,1.0473788,2007.7,2007.3,0.001]
[1770461301963,1.0473788,2007.5,2007.0,0.001]
[1770461302162,1.0473788,2007.5,2006.7,0.001]
[1770461303278,1.0473788,2007.3,2006.7,0.001]
[1770461305557,1.0473788,2007.1,2006.7,0.001]
[1770461306571,1.0473788,2007.1,2006.2,2.26060845]
[1770461307192,1.0473788,2007.1,2006.2,1.01447203]
[1770461308164,1.24564025,2007.0,2006.2,1.01447203]
[1770461308396,0.72755801,2006.9,2006.2,1.01447203]
[1770461308767,0.72755801,2006.9,2006.2,2.26060479]
[1770461308972,0.72755801,2006.9,2006.2,1.01447203]
[1770461309203,0.72755801,2006.9,2006.2,2.26060495]
[1770461309406,0.72755801,2006.9,2006.7,0.001]
[1770461310190,1.2457644,2006.8,2006.2,1.01447203]
[1770461310374,0.69562208,2006.7,2006.2,1.01447203]
[1770461310580,0.69562208,2006.7,2006.2,2.26060875]
[1770461310778,1.97330436,2006.9,2006.2,2.26060875]
[1770461311890,1.97330436,2006.9,2006.2,1.01447203]
[1770461312098,0.72755801,2006.9,2006.2,2.26060311]
[1770461312294,1.97326217,2006.9,2006.3,2.25950477]
[1770461312499,1.97326217,2006.9,2006.3,1.01347203]
[1770461312698,0.69558369,2006.8,2006.3,1.01347203]
[1770461312891,4.98383185,2007.3,2006.3,1.01347203]
[1770461312892,1.245559,2007.2,2006.5,1.01347203]
[1770461313088,2.2929378,2007.2,2006.3,2.25950297]
[1770461313395,1.0473788,2007.1,2006.3,1.01347203]
[1770461313600,1.0473788,2007.1,2006.2,1.24711656]
[1770461313997,1.0473788,2007.1,2006.3,2.25952263]
[1770461314299,0.002,2007.3,2006.5,1.24590832]
[1770461315003,0.002,2007.3,2006.5,2.25938035]
[1770461315371,1.0493788,2007.3,2006.5,1.01347203]
[1770461315580,1.0493788,2007.3,2006.4,1.97050537]
[1770461315899,1.0493788,2007.3,2006.3,1.01347203]
[1770461316097,1.04218398,2007.1,2006.2,1.24709546]
[1770461316278,2.28782423,2007.0,2006.2,1.24709546]
[1770461316788,2.28782423,2007.0,2006.2,0.001]
[1770461317617,1.04218398,2006.9,2006.2,0.001]
[1770461317811,2.09468177,2006.9,2006.2,0.001]
[1770461317995,1.38652999,2006.8,2006.2,0.001]
[1770461318194,0.3340322,2006.8,2006.2,0.001]
[1770461318695,1.24582648,2006.7,2006.2,0.001]
[1770461319018,1.57984414,2006.8,2006.2,0.001]
[1770461320326,13.25243253,2006.6,2005.9,0.001]
[1770461320619,1.24601275,2006.4,2005.9,0.001]
[1770461320800,2.28819673,2006.4,2005.9,0.001]
[1770461321513,1.04218398,2006.3,2005.7,0.001]
[1770461321719,1.04218398,2006.2,2005.3,0.94388654]
[1770461321922,1.32524325,2006.1,2005.3,0.94388654]
[1770461322119,13.25243253,2006.0,2005.1,0.94388654]
[1770461322418,12.21024855,2005.7,2004.9,2.19080328]
[1770461322595,1.24638548,2005.8,2004.9,0.94388654]
[1770461322798,2.28856946,2005.8,2004.9,0.94388654]
[1770461322991,1.04218398,2005.6,2004.7,1.24706422]
[1770461323423,1.04218398,2005.6,2004.6,1.24709278]
[1770461323596,1.04218398,2005.4,2004.4,2.19110275]
[1770461323919,1.04218398,2005.4,2004.3,4.98919051]
[1770461323920,1.04218398,2005.4,2004.5,1.24719365]
[1770461324326,12.21024855,2005.5,2004.5,2.19108019]
[1770461324535,1.22102486,2005.4,2004.6,2.19101424]
[1770461324697,1.24669625,2005.3,2004.6,0.94388654]
[1770461324891,1.24669625,2005.3,2004.4,2.1911181]
[1770461325120,1.22102486,2005.4,2004.7,0.94388654]
[1770461325323,1.24660017,2005.5,2004.7,0.94388654]
[1770461325521,14.4990327,2005.5,2004.5,1.24716391]
[1770461325700,1.04218398,2005.4,2004.5,1.24718652]
[1770461325904,1.04218398,2005.4,2004.5,1.2471917]
[1770461326106,1.04218398,2005.4,2004.5,2.19107824]
[1770461326424,1.24660017,2005.5,2004.7,0.94388654]
[1770461326612,4.98604979,2005.6,2004.7,0.94388654]
[1770461326802,6.02823377,2005.6,2004.6,1.24712706]
[1770461327005,1.04218398,2005.5,2004.6,1.24712706]
[1770461327203,12.21024855,2005.1,2004.2,0.94388654]
[1770461327508,12.21024855,2005.1,2003.4,2.19173333]
[1770461327509,13.56925313,2004.6,2003.4,2.19173333]
[1770461327717,13.56925313,2004.6,2003.7,1.00100244]
[1770461327718,0.2597047,2004.6,2003.7,1.00100244]
[1770461327921,0.2597047,2004.6,2003.7,0.94388654]
[1770461328527,0.2597047,2004.6,2004.0,0.94388654]
[1770461328727,0.2597047,2004.6,2004.2,0.94388654]
[1770461328906,0.2597047,2004.6,2004.2,1.00100244]
[1770461329110,1.24679873,2005.2,2004.2,0.94388654]
[1770461329305,0.62336786,2005.1,2004.2,0.94388654]
[1770461330831,1.87019566,2005.1,2004.3,2.1912048]
[1770461331129,1.87019566,2005.1,2004.2,1.24733446]
[1770461331512,1.87019566,2005.1,2004.1,1.24740451]
[1770461331713,1.87019566,2005.1,2004.2,1.24737976]
[1770461332033,0.68572353,2005.0,2004.3,0.62371091]
[1770461332834,1.24694498,2004.9,2004.3,0.62371091]
[1770461333134,5.67328607,2005.0,2004.3,1.24731702]
[1770461333135,1.93265123,2005.0,2004.3,1.24731702]
[1770461333336,1.93260736,2005.0,2004.4,0.94388654]
[1770461333632,0.68572353,2005.0,2004.3,1.24731702]
[1770461333811,1.24686423,2005.1,2004.3,1.24731702]
[1770461334209,2.28904821,2005.1,2004.3,1.24731358]
[1770461334415,1.24669625,2005.3,2004.4,0.94388654]
[1770461334607,1.24669625,2005.3,2004.5,0.001]
[1770461334813,2.10857528,2005.3,2004.5,1.24819381]
[1770461335415,1.04769235,2005.2,2004.5,0.001]
[1770461335720,2.10857528,2005.3,2004.5,0.001]
[1770461335914,1.04770785,2005.2,2004.5,0.001]
[1770461336113,3.15075926,2005.3,2004.5,0.001]
[1770461336340,1.8614466,2005.2,2004.5,0.001]
[1770461336630,0.81373852,2005.2,2004.5,0.001]
[1770461336802,0.81373852,2005.2,2004.5,0.94488654]
[1770461337004,2.31654224,2005.5,2004.5,0.94488654]
[1770461337236,1.04779177,2005.4,2004.5,0.94488654]
[1770461337441,2.31654224,2005.5,2004.5,0.94488654]
[1770461337629,1.04792741,2005.4,2004.5,0.94488654]
[1770461337826,0.33644697,2005.3,2004.5,0.94488654]
[1770461339004,0.33644697,2005.3,2004.6,2.19101813]
[1770461339753,1.24663813,2005.4,2004.6,2.19101813]
[1770461340449,2.28882211,2005.4,2004.5,1.24814842]
[1770461340748,2.74014209,2005.4,2004.5,1.24814842]
[1770461340962,1.24650977,2005.6,2004.7,2.19095592]
[1770461341168,1.04902464,2005.5,2004.7,2.19095592]
[1770461341399,1.3155426,2005.7,2004.8,0.94388654]
[1770461341522,1.24644122,2005.8,2004.8,0.94388654]
[1770461341729,1.04958166,2005.7,2004.8,0.94388654]
[1770461342028,1.24644122,2005.8,2004.8,0.94388654]
[1770461342227,1.04962975,2005.7,2004.8,0.94388654]
[1770461342423,2.56183493,2006.0,2005.0,0.94388654]
[1770461342653,1.05015103,2005.9,2005.0,0.94388654]
[1770461342837,1.05015103,2005.8,2005.0,0.94388654]
[1770461343038,2.56183493,2006.0,2005.1,2.19070714]
[1770461343240,1.05049784,2005.9,2005.2,0.94388654]
[1770461343441,1.24621481,2006.1,2005.2,1.6616855]
[1770461343637,1.3155426,2006.3,2005.3,0.94388654]
[1770461343850,1.05132843,2006.2,2005.3,0.94388654]
[1770461344055,1.69733356,2006.4,2005.3,0.94388654]
[1770461344235,1.05100355,2006.3,2005.3,0.94388654]
[1770461344429,1.69733356,2006.4,2005.3,0.94388654]
[1770461344430,1.32583726,2006.2,2005.3,0.94388654]
[1770461344654,0.27483371,2006.2,2005.3,0.94388654]
[1770461344855,1.24601522,2006.4,2005.3,0.94388654]
[1770461345055,1.05168114,2006.3,2005.3,0.94388654]
[1770461345256,1.05199887,2006.2,2005.5,0.94388654]
[1770461345461,1.24601522,2006.4,2005.5,0.94388654]
[1770461345661,1.05195781,2006.3,2005.5,0.93173893]
[1770461345862,1.05195781,2006.2,2005.4,1.24663408]
[1770461346066,1.05195781,2006.1,2005.4,1.24663408]
[1770461346260,1.05195781,2006.1,2005.2,1.65873185]
[1770461346261,1.05254276,2006.0,2005.2,1.24671631]
[1770461346466,1.05254276,2005.9,2005.2,1.24671631]
[1770461346767,1.05254276,2005.8,2005.2,1.24671631]
[1770461346956,1.3175426,2006.0,2005.3,1.24668905]
[1770461347132,2.29879298,2005.9,2005.2,1.24671259]
[1770461347334,1.41408719,2005.8,2005.2,1.24671259]
[1770461347697,0.36163356,2005.8,2005.2,1.24671259]
[1770461348185,2.0684135,2005.7,2004.9,1.24689564]
[1770461348461,1.05282503,2005.6,2004.9,1.24689564]
[1770461348665,1.05282503,2005.6,2005.0,1.24684259]
[1770461348864,1.05378622,2005.5,2005.0,1.24684259]
[1770461349109,1.05378622,2005.4,2004.9,1.24690717]
[1770461349297,1.05436401,2005.3,2004.8,4.98793207]
[1770461349497,2.83508491,2005.6,2004.8,4.98793207]
[1770461349697,1.05444145,2005.5,2004.8,4.98793207]
[1770461349911,2.83508491,2005.6,2004.8,4.98793207]
[1770461349912,1.44339409,2005.4,2004.8,4.98793207]
[1770461350203,1.05444145,2005.3,2004.8,4.98793207]
[1770461350783,1.05444145,2005.3,2004.8,1.24700718]
[1770461351012,1.05444145,2005.3,2004.9,0.93844229]
[1770461351311,0.27300012,2005.6,2005.0,1.24688279]
[1770461351524,1.0560008,2005.5,2005.0,2.9026107]
[1770461351693,1.3155426,2005.7,2005.1,0.93844229]
[1770461351898,1.05603108,2005.6,2005.1,0.93844229]
[1770461352089,1.05603108,2005.5,2005.1,0.93844229]
[1770461352408,1.3155426,2005.7,2005.1,0.93844229]
[1770461352614,1.05636764,2005.6,2005.1,0.93844229]
[1770461352795,1.05636764,2005.5,2005.1,0.93844229]
[1770461352998,1.78330218,2005.7,2005.1,0.93844229]
[1770461353192,1.05654782,2005.6,2005.2,1.24675842]
[1770461353511,1.05654782,2005.5,2005.2,2.18520071]
[1770461353681,0.95484779,2005.7,2005.0,1.96414024]
[1770461353890,2.27039039,2005.4,2004.5,0.001]
[1770461354088,2.27039039,2005.3,2004.5,0.001]
[1770461354287,1.3155426,2005.2,2004.7,1.24705899]
[1770461354585,1.3155426,2005.2,2004.5,4.98977298]
[1770461354785,0.95484779,2005.1,2004.5,0.001]
[1770461355009,2.27039039,2005.0,2004.5,0.001]
[1770461355405,3.51732965,2005.0,2004.5,0.001]
[1770461355592,0.85047123,2004.9,2004.5,0.001]
[1770461356808,1.3155426,2004.8,2004.5,0.001]
[1770461357400,2.56257705,2004.8,2004.5,0.001]
[1770461358519,3.51742484,2004.8,2004.5,0.001]
[1770461359087,2.56257705,2004.8,2004.7,0.001]
[1770461359418,4.70797418,2004.8,2004.5,0.001]
[1770461359621,2.56255675,2004.8,2004.5,0.001]
[1770461359921,1.3155426,2004.8,2004.5,0.001]
[1770461360103,2.09741727,2004.9,2004.5,0.001]
[1770461360419,0.85047123,2004.9,2004.5,0.001]
[1770461360797,3.41297259,2004.9,2004.5,0.001]
[1770461360998,3.41297259,2004.9,2004.3,0.001]
[1770461360999,2.27039039,2004.7,2004.3,0.001]
[1770461361611,2.56266055,2004.7,2004.3,0.001]
[1770461361816,2.56262207,2004.7,2004.3,0.001]
[1770461362017,1.3155426,2004.7,2004.3,0.001]
[1770461362322,1.65683986,2004.8,2004.3,0.001]
[1770461362520,0.5508355,2004.7,2004.3,0.001]
[1770461363022,0.34129726,2004.8,2004.3,0.001]
[1770461363219,2.16601383,2004.9,2004.3,0.001]
[1770461363426,1.3155426,2005.0,2004.3,0.93944229]
[1770461363608,1.3155426,2005.1,2004.4,1.24725603]
[1770461364005,2.56236614,2005.1,2004.4,1.24725603]
[1770461364908,1.3155426,2005.1,2004.4,1.24725603]
[1770461365110,2.56225515,2005.3,2004.5,0.62373822]
[1770461365314,1.3155426,2005.3,2004.5,0.62373822]
[1770461365829,2.36904736,2005.3,2004.6,1.24713159]
[1770461366212,1.05350476,2005.2,2004.6,2.18557388]
[1770461366529,1.3155426,2005.5,2004.6,2.18557388]
[1770461366732,1.05360519,2005.4,2004.7,0.77978385]
[1770461366910,1.05360519,2005.3,2004.7,0.77978385]
[1770461367114,1.05360519,2005.2,2004.7,0.77978385]
[1770461367316,0.45131998,2005.3,2004.6,1.24713159]
[1770461367511,1.05360579,2005.2,2004.6,1.24713159]
[1770461367716,3.51708328,2005.4,2004.6,1.24713159]
[1770461367913,1.05367913,2005.3,2004.6,1.24713159]
[1770461368140,1.05367913,2005.2,2004.6,1.93307121]
[1770461368431,1.05367913,2005.2,2004.6,0.68593962]
[1770461368637,1.05367913,2005.1,2004.5,1.24718249]
[1770461368805,1.98005538,2005.3,2004.5,1.24718249]
[1770461369010,1.05349194,2005.2,2004.5,1.24718249]
[1770461369321,1.05349194,2005.1,2004.5,1.24718249]
[1770461369521,3.29559798,2005.3,2004.5,1.24718249]
[1770461369720,3.88439194,2005.2,2004.5,1.96474651]
[1770461369923,1.05342799,2005.1,2004.5,1.96474651]
[1770461370253,2.36897059,2005.1,2004.5,1.24718249]
[1770461370408,1.05342799,2005.0,2004.5,1.24718249]
[1770461370737,2.89969894,2005.2,2004.5,1.24718249]
[1770461370929,1.05349949,2005.1,2004.5,1.24718249]
[1770461371236,1.05349949,2005.0,2004.5,1.24718249]
[1770461371534,4.1464595,2005.2,2004.5,1.96474651]
[1770461371737,1.05383484,2005.1,2004.5,1.96474651]
[1770461371938,1.05383484,2005.0,2004.5,1.96474651]
[1770461372120,4.1464595,2005.2,2004.5,1.96474651]
[1770461372317,1.05362996,2005.1,2004.5,1.96474651]
[1770461372523,1.05362996,2005.0,2004.5,1.96574651]
[1770461372830,0.002,2004.9,2004.6,0.69547619]
[1770461373940,0.002,2004.9,2004.6,1.94258891]
[1770461374161,1.3155426,2005.5,2004.6,1.94258891]
[1770461374328,1.3175426,2005.8,2004.9,0.93844229]
[1770461374532,1.05516453,2005.5,2004.9,0.93844229]
[1770461374729,1.05516453,2005.5,2004.6,1.94258891]
[1770461374730,1.24647401,2005.7,2004.7,0.93844229]
[1770461374935,7.25807047,2005.8,2004.8,0.28810312]
[1770461374936,1.05517783,2005.5,2004.8,0.28810312]
[1770461375131,0.002,2005.8,2004.9,0.93844229]
[1770461375934,0.002,2005.8,2005.1,0.93104644]
[1770461378062,0.002,2005.8,2005.3,0.93104644]
[1770461380060,0.002,2005.8,2005.4,1.24663408]
[1770461380263,0.002,2005.8,2005.5,0.71642169]
[1770461381067,0.002,2005.8,2004.8,1.21914956]
[1770461381367,0.002,2005.8,2005.3,1.24669192]
[1770461381754,0.002,2005.8,2005.4,0.93104644]
[1770461381958,0.002,2005.8,2005.5,1.24657192]
[1770461383267,0.002,2005.8,2005.5,2.17761836]
[1770461383474,0.002,2006.2,2005.7,0.93104644]
[1770461384075,0.002,2006.7,2005.9,0.93104644]
[1770461385070,0.002,2006.7,2005.8,1.24638548]
[1770461385071,0.002,2006.7,2006.1,0.93104644]
[1770461386347,0.002,2006.7,2006.2,1.24613697]
[1770461386547,0.002,2006.7,2006.3,0.93104644]
[1770461386754,0.002,2006.7,2006.3,0.71617313]
[1770461386979,0.002,2006.7,2006.2,1.24613697]
[1770461387757,0.94080275,2006.7,2005.6,5.70238606]
[1770461388076,0.94080275,2006.7,2006.1,1.24618932]
[1770461388270,0.002,2006.7,2006.1,1.24618932]
[1770461388466,0.002,2006.7,2006.0,4.98485989]
[1770461388775,0.002,2006.7,2006.1,0.99696563]
[1770461388968,0.002,2006.7,2006.1,1.92801207]
[1770461390854,0.002,2006.7,2006.2,1.24613697]
[1770461391055,0.002,2006.7,2006.1,2.24312235]
[1770461391251,0.002,2006.7,2005.7,5.91664249]
[1770461391252,0.94080275,2006.7,2005.8,4.98551377]
[1770461391563,0.94080275,2006.7,2006.0,1.24623653]
[1770461392263,0.94080275,2006.7,2006.1,1.24618908]
[1770461392464,0.002,2006.7,2006.1,1.24618908]
[1770461395382,0.002,2006.7,2005.7,4.98577425]
[1770461395558,0.002,2006.7,2005.7,5.91682069]
[1770461395758,0.002,2006.7,2005.8,0.93104644]
[1770461395974,0.002,2006.7,2005.9,0.59168207]
[1770461396589,0.002,2006.7,2006.0,0.93104644]